bitfinex-derivatives/quotes_BNBF0:USTF0_20250807
["timestamp","ask_amount","ask_price","bid_price","bid_amount"]
[1754564135383,0.86197919,778.49,777.4,0.84199194]
[1754564135581,0.86197919,778.49,777.39,0.84199194]
[1754564135782,0.86197919,778.44,777.34,0.84199194]
[1754564135982,0.86197919,778.34,777.25,0.84199194]
[1754564136682,0.86197919,778.34,777.26,0.84199194]
[1754564136882,0.86197919,778.36,777.24,0.84199194]
[1754564137383,0.86197919,778.37,777.26,0.84199194]
[1754564137684,0.86197919,778.38,777.27,0.84199194]
[1754564138277,1.81997919,778.37,777.27,0.84199194]
[1754564138780,0.86197919,778.36,777.27,0.84199194]
[1754564138985,0.958,778.37,777.26,0.84199194]
[1754564139382,0.86197919,778.36,777.27,0.84199194]
[1754564140585,0.86197919,778.35,777.28,0.84199194]
[1754564141386,0.86197919,778.34,777.28,0.84199194]
[1754564141886,0.86197919,778.33,777.29,0.84199194]
[1754564142583,0.958,778.37,777.26,0.84199194]
[1754564143184,0.958,778.37,777.33,0.84199194]
[1754564143382,0.958,778.37,777.34,0.84199194]
[1754564143787,0.958,778.37,777.35,0.84199194]
[1754564144287,0.958,778.37,777.36,0.84199194]
[1754564144688,0.86197919,778.3,777.45,0.84199194]
[1754564144991,0.86197919,778.33,777.48,0.84199194]
[1754564145184,0.86197919,778.36,777.51,0.84199194]
[1754564146486,0.958,778.37,777.37,1.1426031]
[1754564146487,0.86197919,778.35,777.52,0.84199194]
[1754564146787,0.86197919,778.36,777.53,0.84199194]
[1754564148190,0.86197919,778.35,777.53,0.84199194]
[1754564148390,0.86197919,778.35,777.39,1.1426031]
[1754564148391,0.86197919,778.35,777.54,0.84199194]
[1754564149093,0.86197919,778.34,777.54,0.84199194]
[1754564149490,0.86197919,778.34,777.55,0.84199194]
[1754564150296,0.86197919,778.33,777.55,0.84199194]
[1754564151089,0.86197919,778.34,777.54,0.84199194]
[1754564151294,0.958,778.37,777.51,0.84199194]
[1754564151493,0.958,778.37,777.52,0.84199194]
[1754564151989,0.958,778.37,777.51,0.84199194]
[1754564152494,0.958,778.37,777.52,0.84199194]
[1754564152690,0.958,778.37,777.5,0.84199194]
[1754564152991,0.958,778.37,777.51,0.84199194]
[1754564153396,0.958,778.37,777.32,1.1426031]
[1754564153592,0.958,778.37,777.51,0.84489101]
[1754564154295,0.958,778.37,777.44,0.84489101]
[1754564154496,0.958,778.37,777.51,0.84489101]
[1754564155297,0.958,778.37,777.53,0.84489101]
[1754564155491,1.82234618,778.37,777.58,0.84489101]
[1754564155894,0.958,778.37,777.55,0.84489101]
[1754564156896,0.958,778.37,777.56,0.84489101]
[1754564157191,0.958,778.37,777.55,0.84489101]
[1754564157395,0.958,778.37,777.56,0.84489101]
[1754564158792,0.958,778.37,777.52,0.84489101]
[1754564159092,0.958,778.37,777.44,0.84489101]
[1754564159293,0.958,778.37,777.45,0.84489101]
[1754564159492,0.958,778.37,777.46,0.84489101]
[1754564159895,0.958,778.37,777.44,0.84489101]
[1754564160096,0.958,778.37,777.51,0.84489101]
[1754564160290,0.958,778.37,778.03,0.84489101]
[1754564160494,0.958,778.37,777.86,0.84489101]
[1754564161195,0.86434618,778.66,777.81,0.84489101]
[1754564161499,0.86434618,778.55,777.84,0.84489101]
[1754564161695,0.86434618,778.55,777.85,0.84489101]
[1754564162199,0.86434618,778.56,777.84,0.84489101]
[1754564162601,0.86434618,778.52,777.8,0.84489101]
[1754564162900,0.86434618,778.47,777.75,0.84489101]
[1754564163098,0.86434618,778.49,777.74,0.84489101]
[1754564163302,0.86434618,778.49,777.73,0.84489101]
[1754564163797,0.86434618,778.56,777.67,0.84489101]
[1754564163999,0.86434618,778.64,777.62,0.84489101]
[1754564164199,1.7414845,779.11,777.61,0.84489101]
[1754564164200,0.86434618,778.65,777.61,0.84489101]
[1754564164403,0.86434618,778.64,777.61,0.84489101]
[1754564164604,0.86434618,778.63,777.59,0.84489101]
[1754564164801,0.86434618,778.58,777.54,0.84489101]
[1754564165298,0.86434618,778.59,777.54,0.84489101]
[1754564166207,0.86434618,778.49,777.44,0.84489101]
[1754564166901,0.86434618,778.5,777.45,0.84489101]
[1754564167103,1.7414845,778.97,776.02,2.8565079]
[1754564167104,0.86434618,778.72,777.67,0.84489101]
[1754564167301,0.86434618,778.71,777.67,0.84489101]
[1754564167502,2.16834618,778.71,777.67,0.84489101]
[1754564168404,2.16834618,778.71,777.66,0.84489101]
[1754564169105,1.304,778.71,777.7,0.84489101]
[1754564169408,0.86434618,778.62,777.76,0.84489101]
[1754564169804,0.86434618,778.63,777.77,0.84489101]
[1754564170108,0.86434618,778.62,777.78,0.84489101]
[1754564170308,0.86434618,778.65,777.76,0.84489101]
[1754564171209,0.86434618,778.66,777.75,0.84489101]
[1754564171604,0.86434618,778.65,777.76,0.84489101]
[1754564172305,0.86434618,778.42,777.51,0.84489101]
[1754564172504,0.86434618,778.35,777.44,0.84489101]
[1754564172906,0.86434618,778.33,777.42,0.84489101]
[1754564173105,0.86434618,778.32,777.41,0.84489101]
[1754564173405,0.86434618,778.27,777.41,0.84489101]
[1754564173605,0.86434618,778.26,777.41,0.84489101]
[1754564174711,0.86434618,778.29,777.4,0.84489101]
[1754564174906,0.86434618,778.36,777.35,0.84489101]
[1754564175110,0.86434618,778.37,777.35,0.84489101]
[1754564175311,0.86434618,778.4,777.25,0.84489101]
[1754564175507,0.86434618,778.44,777.29,0.84489101]
[1754564177516,0.86434618,778.43,777.28,0.84489101]
[1754564178412,0.86434618,778.37,777.32,0.84489101]
[1754564178618,0.86434618,778.43,777.38,0.84489101]
[1754564180918,0.86434618,778.42,777.37,0.84489101]
[1754564181619,0.86434618,778.41,777.37,0.84489101]
[1754564181919,2.15234618,778.41,777.37,0.84489101]
[1754564182321,0.86434618,778.4,777.36,0.84489101]
[1754564182522,0.86434618,778.35,777.39,0.84489101]
[1754564182919,0.86434618,778.36,777.39,0.84489101]
[1754564183117,0.86434618,778.35,777.39,0.84489101]
[1754564183317,0.86434618,778.36,777.39,0.84489101]
[1754564184423,0.86434618,778.4,777.36,0.84489101]
[1754564188121,1.288,778.41,777.34,0.84489101]
[1754564188322,1.288,778.41,777.31,0.84489101]
[1754564188525,1.288,778.41,777.33,0.84489101]
[1754564188727,1.288,778.41,777.3,0.84489101]
[1754564189221,1.288,778.41,777.31,0.84489101]
[1754564189721,1.288,778.41,777.27,0.84489101]
[1754564190326,0.86434618,778.4,777.24,0.84489101]
[1754564190524,2.15234618,778.41,777.24,0.84489101]
[1754564191125,0.86434618,778.4,777.23,0.84489101]
[1754564191727,2.15234618,778.41,777.24,0.84489101]
[1754564192727,2.15234618,778.41,777.23,0.84489101]
[1754564193423,0.86434618,778.38,777.25,0.84489101]
[1754564194227,0.86434618,778.39,777.25,0.84489101]
[1754564194524,0.86434618,778.38,777.24,0.84489101]
[1754564196030,0.86434618,778.34,777.26,0.84489101]
[1754564196228,0.86434618,778.35,777.26,0.84489101]
[1754564196524,0.86434618,778.35,777.27,0.84489101]
[1754564196728,0.86434618,778.36,777.24,0.84489101]
[1754564197325,0.86434618,778.37,777.24,0.84489101]
[1754564198123,1.288,778.41,777.24,0.84489101]
[1754564198124,0.86434618,778.36,777.24,0.84489101]
[1754564198824,0.86434618,778.33,777.26,0.84489101]
[1754564199025,0.86434618,778.32,777.27,0.84489101]
[1754564199524,0.86434618,778.31,777.27,0.84489101]
[1754564199830,0.86434618,778.31,777.28,0.84489101]
[1754564200531,0.86434618,778.3,777.28,0.84489101]
[1754564201226,0.86434618,778.26,777.31,0.84489101]
[1754564201730,0.86434618,778.25,777.32,0.84489101]
[1754564202326,0.86434618,778.25,777.31,0.84489101]
[1754564202526,0.86434618,778.26,777.31,0.84489101]
[1754564203230,0.86434618,778.26,777.3,0.84489101]
[1754564203446,0.86434618,778.29,777.29,0.84489101]
[1754564204229,0.86434618,778.23,777.23,0.84489101]
[1754564204527,0.86434618,778.3,777.18,0.84489101]
[1754564206231,0.86434618,778.31,777.18,0.84489101]
[1754564206531,0.86434618,778.3,777.17,0.84489101]
[1754564207333,0.86434618,778.31,777.16,0.84489101]
[1754564208433,0.86434618,778.31,777.15,0.84489101]
[1754564208633,0.86434618,778.31,777.16,0.84489101]
[1754564209234,0.86434618,778.31,777.15,0.84489101]
[1754564210333,1.288,778.41,777.15,0.84489101]
[1754564210334,0.86434618,778.32,777.15,0.84489101]
[1754564211334,0.86434618,778.35,777.13,0.84489101]
[1754564211835,1.288,778.41,777.07,0.84489101]
[1754564212738,1.288,778.41,777.08,0.84489101]
[1754564213533,1.288,778.41,777.1,0.84489101]
[1754564214234,1.288,778.41,777.09,0.84489101]
[1754564214536,1.288,778.41,777.08,0.84489101]
[1754564215732,1.288,778.41,777.09,0.84489101]
[1754564216535,1.288,778.41,777.1,0.84489101]
[1754564216835,0.86434618,778.37,777.16,0.84489101]
[1754564218133,0.86434618,778.35,777.17,0.84489101]
[1754564219139,0.982,778.34,777.17,0.84489101]
[1754564219538,1.84634618,778.34,777.18,0.84489101]
[1754564219735,1.84426224,778.34,777.18,0.84369349]
[1754564220340,0.982,778.34,777.02,0.84369349]
[1754564220637,0.86226224,778.27,777.22,0.84369349]
[1754564220834,0.86226224,778.08,777.04,0.84369349]
[1754564221439,0.86226224,778.05,777.0,0.84369349]
[1754564221642,0.86226224,778.04,777.01,0.84369349]
[1754564222136,0.86226224,778.02,777.02,0.84369349]
[1754564222340,0.86226224,778.01,777.02,0.84369349]
[1754564222540,0.86226224,778.01,777.01,0.84369349]
[1754564222743,0.86226224,778.04,777.02,0.84369349]
[1754564222941,0.86226224,778.03,777.01,0.84369349]
[1754564223140,0.86226224,778.02,777.02,0.84369349]
[1754564223337,0.86226224,778.03,777.01,0.84369349]
[1754564223638,0.86226224,778.02,777.01,0.84369349]
[1754564223942,0.86226224,777.98,776.97,0.84369349]
[1754564224245,0.86226224,777.99,776.97,0.84369349]
[1754564224443,0.86226224,778.0,776.96,0.84369349]
[1754564224644,0.86226224,778.02,776.95,0.84369349]
[1754564225039,0.86226224,778.01,776.95,0.84369349]
[1754564225545,0.86226224,778.02,776.95,0.84369349]
[1754564226142,0.86226224,778.03,776.94,0.84369349]
[1754564226343,0.86226224,778.04,776.94,0.84369349]
[1754564227046,0.86226224,778.05,776.93,0.84369349]
[1754564227248,0.86226224,778.07,776.92,0.84369349]
[1754564227643,0.86226224,778.08,776.92,0.84369349]
[1754564228153,0.86226224,778.06,776.92,0.84369349]
[1754564228348,0.86226224,778.07,776.92,0.84369349]
[1754564229453,0.86226224,778.06,776.93,0.84369349]
[1754564229954,0.86226224,778.05,776.93,0.84369349]
[1754564230253,0.86226224,778.04,776.93,0.84369349]
[1754564230554,0.86226224,778.04,776.94,0.84369349]
[1754564231254,0.86226224,778.02,776.95,0.84369349]
[1754564231447,0.86226224,778.01,776.94,0.84369349]
[1754564232056,0.86226224,778.01,776.93,0.84369349]
[1754564232351,0.86226224,778.02,776.93,0.84369349]
[1754564233552,0.86226224,778.04,776.92,0.84369349]
[1754564234754,0.86226224,778.05,776.92,0.84369349]
[1754564236253,0.86226224,778.06,776.92,0.84369349]
[1754564237059,0.86226224,778.05,776.93,0.84369349]
[1754564237260,0.86226224,778.05,776.92,0.84369349]
[1754564237559,0.86226224,778.04,776.93,0.84369349]
[1754564239358,0.86226224,778.08,776.91,0.84369349]
[1754564239562,0.86226224,778.08,776.9,0.84369349]
[1754564240262,0.86226224,778.08,776.91,0.84369349]
[1754564241263,0.86226224,778.07,776.9,0.84369349]
[1754564241460,0.86226224,778.08,776.91,0.84369349]
[1754564241761,0.86226224,778.07,776.9,0.84369349]
[1754564241958,0.86226224,778.08,776.9,0.84369349]
[1754564242157,0.86226224,778.06,776.91,0.84369349]
[1754564242360,0.86226224,778.07,776.91,0.84369349]
[1754564243564,0.86226224,778.06,776.92,0.84369349]
[1754564243864,0.86226224,778.12,776.88,0.84369349]
[1754564245664,0.86226224,778.11,776.88,0.84369349]
[1754564246062,0.86226224,778.12,776.89,0.84369349]
[1754564247162,0.86226224,778.11,776.89,0.84369349]
[1754564248365,0.86226224,778.11,776.9,0.84369349]
[1754564248668,0.86226224,778.11,776.89,0.84369349]
[1754564249164,0.86226224,778.09,776.91,0.84369349]
[1754564249367,1.1609896,778.32,776.91,0.84369349]
[1754564249368,0.86226224,778.08,776.91,0.84369349]
[1754564251270,0.86226224,778.07,776.91,0.84369349]
[1754564251469,0.86226224,778.08,776.91,0.84369349]
[1754564251971,0.86226224,778.09,776.9,0.84369349]
[1754564252770,0.86226224,778.09,776.91,0.84369349]
[1754564253070,0.86226224,778.09,776.9,0.84369349]
[1754564253270,0.86226224,778.09,776.91,0.84369349]
[1754564253769,0.86226224,778.04,776.94,0.84369349]
[1754564254269,0.86226224,778.03,776.94,0.84369349]
[1754564255270,0.86226224,778.03,776.95,0.84369349]
[1754564256370,0.86226224,778.02,776.95,0.84369349]
[1754564256870,1.19,778.01,776.95,0.84369349]
[1754564257575,1.19,778.01,776.94,0.84369349]
[1754564257770,0.86226224,778.0,776.94,0.84369349]
[1754564259273,0.86226224,777.97,776.96,0.84369349]
[1754564259473,0.86226224,777.98,776.95,0.84369349]
[1754564259974,1.19,778.01,776.9,0.84369349]
[1754564262378,0.86226224,777.96,776.96,0.84369349]
[1754564263176,0.86226224,777.96,776.97,0.84369349]
[1754564263578,1.19,778.01,776.87,0.84369349]
[1754564263879,0.86226224,777.96,776.96,0.84369349]
[1754564264174,0.86226224,777.96,776.97,0.84369349]
[1754564264678,0.86226224,777.93,776.94,0.84369349]
[1754564264978,0.86226224,777.87,776.88,0.84369349]
[1754564265477,0.86226224,777.87,776.87,0.84369349]
[1754564266277,0.86226224,777.86,776.88,0.84369349]
[1754564267774,0.86226224,777.84,776.89,0.84369349]
[1754564268379,0.86226224,777.83,776.9,0.84369349]
[1754564268675,0.86226224,777.8,776.92,0.84369349]
[1754564268876,0.86226224,777.78,776.94,0.84369349]
[1754564269181,0.86226224,777.77,776.94,0.84369349]
[1754564271179,0.86226224,777.77,776.95,0.84369349]
[1754564271679,2.9024741,778.7,776.44,0.22366764]
[1754564271680,0.86226224,777.84,776.9,0.84369349]
[1754564272781,0.86226224,777.85,776.89,0.84369349]
[1754564273180,0.86226224,777.84,776.9,0.84369349]
[1754564273984,0.86226224,777.85,776.9,0.84369349]
[1754564274280,0.86226224,777.84,776.91,0.84369349]
[1754564274983,0.86226224,777.83,776.91,0.84369349]
[1754564275384,0.86226224,777.82,776.92,0.84369349]
[1754564276183,0.86226224,777.81,776.93,0.84369349]
[1754564277184,0.86226224,777.8,776.94,0.84369349]
[1754564278181,0.86226224,777.8,776.96,0.84369349]
[1754564278486,0.86226224,777.79,776.96,0.84369349]
[1754564279386,0.86226224,777.77,776.97,0.84369349]
[1754564281687,0.86226224,777.7,777.02,0.84369349]
[1754564282588,0.86226224,777.68,777.04,0.84369349]
[1754564282785,0.86226224,777.68,777.03,0.84369349]
[1754564283288,0.86226224,777.68,777.04,0.84369349]
[1754564283787,1.1609896,777.82,777.04,0.84369349]
[1754564283788,0.86226224,777.67,777.04,0.84369349]
[1754564284393,1.1609896,777.81,777.01,0.84369349]
[1754564284590,0.86226224,777.86,777.01,0.84369349]
[1754564287389,0.86226224,777.85,777.01,0.84369349]
[1754564287689,0.86226224,777.86,777.01,0.84369349]
[1754564288092,0.86226224,777.85,777.0,0.84369349]
[1754564288993,0.995,777.84,777.0,0.84369349]
[1754564289195,0.995,777.84,777.01,0.84369349]
[1754564289495,0.995,777.84,776.99,0.84369349]
[1754564290394,0.995,777.84,776.44,0.22366764]
[1754564290395,0.86226224,777.82,777.03,0.84369349]
[1754564290589,0.86226224,777.8,777.03,0.84369349]
[1754564290791,0.86226224,777.78,777.05,0.84369349]
[1754564290989,0.86226224,777.72,777.08,0.84369349]
[1754564291394,0.86226224,777.68,777.04,0.84369349]
[1754564291690,0.86226224,777.65,777.02,0.84369349]
[1754564292090,0.86226224,777.65,777.01,0.84369349]
[1754564292294,0.86226224,777.66,777.01,0.84369349]
[1754564293096,0.86226224,777.65,777.01,0.84369349]
[1754564293291,0.86226224,777.66,777.01,0.84369349]
[1754564293991,0.995,777.84,776.85,0.84369349]
[1754564294294,0.995,777.84,776.94,0.84369349]
[1754564296995,0.995,777.84,776.95,0.84369349]
[1754564298495,0.995,777.84,776.99,0.84369349]
[1754564298998,0.995,777.84,777.0,0.84369349]
[1754564299597,0.995,777.84,777.01,0.84369349]
[1754564299794,0.995,777.84,777.04,0.84369349]
[1754564299994,0.995,777.84,777.07,0.84369349]
[1754564300198,0.995,777.84,777.06,0.84369349]
[1754564300393,0.995,777.84,777.09,0.84369349]
[1754564300897,0.995,777.84,777.1,0.84369349]
[1754564303799,0.995,777.84,777.02,0.84369349]
[1754564305503,0.995,777.84,777.01,0.84369349]
[1754564306201,0.995,777.84,777.02,0.84369349]
[1754564307201,0.995,777.84,777.01,0.84369349]
[1754564307501,0.995,777.84,776.93,0.84369349]
[1754564308107,0.995,777.84,776.92,0.84369349]
[1754564308406,0.995,777.84,776.98,0.84369349]
[1754564308902,0.995,777.84,777.0,0.84369349]
[1754564309306,0.995,777.84,777.01,0.84369349]
[1754564309804,0.995,777.84,777.07,0.84369349]
[1754564310008,0.995,777.84,777.06,0.84369349]
[1754564310409,0.995,777.84,777.05,0.84369349]
[1754564310810,0.995,777.84,777.09,0.84369349]
[1754564311407,0.995,777.84,777.08,0.84369349]
[1754564314914,0.995,777.84,777.1,0.84369349]
[1754564315616,0.995,777.84,777.04,0.84369349]
[1754564316418,0.995,777.84,777.07,0.84369349]
[1754564320215,0.995,777.84,777.06,0.84369349]
[1754564324420,0.995,777.84,777.05,0.84369349]
[1754564324720,0.995,777.84,777.06,0.84369349]
[1754564325421,0.995,777.84,777.07,0.84369349]
[1754564325620,0.995,777.84,777.14,0.84369349]
[1754564326428,0.995,777.84,777.08,0.84369349]
[1754564326828,0.995,777.84,777.0,0.84369349]
[1754564327125,0.995,777.84,777.05,0.84369349]
[1754564327426,0.995,777.84,776.59,1.7139047]
[1754564327427,0.995,777.84,777.12,0.84369349]
[1754564327622,0.86226224,777.81,777.04,0.84369349]
[1754564328823,0.86226224,777.8,777.04,0.84369349]
[1754564330328,0.86226224,777.79,777.05,0.84369349]
[1754564330626,0.86226224,777.8,777.04,0.84369349]
[1754564331127,0.86226224,777.82,777.03,0.84369349]
[1754564331423,0.86226224,777.84,777.01,0.84369349]
[1754564331624,0.86226224,777.84,776.63,1.7139047]
[1754564331625,0.86226224,777.87,776.99,0.84369349]
[1754564331926,0.86226224,777.88,776.99,0.84369349]
[1754564332124,2.9024741,779.09,776.44,0.22366764]
[1754564332125,0.86226224,777.89,776.98,0.84369349]
[1754564332521,0.86226224,777.86,776.97,0.84369349]
[1754564332727,4.0634638,779.62,776.93,0.84369349]
[1754564332728,0.86226224,777.92,776.93,0.84369349]
[1754564333227,0.86226224,777.89,776.95,0.84369349]
[1754564333827,0.942,777.88,776.95,0.84369349]
[1754564334428,1.80426224,777.88,776.95,0.84369349]
[1754564334929,0.86226224,777.85,776.98,0.84369349]
[1754564335329,0.86226224,777.84,776.98,0.84369349]
[1754564335530,0.86226224,777.83,776.99,0.84369349]
[1754564335930,0.86226224,777.82,776.99,0.84369349]
[1754564336531,0.86226224,777.82,777.0,0.84369349]
[1754564337332,0.86226224,777.83,776.99,0.84369349]
[1754564337634,0.86226224,777.84,777.01,0.84369349]
[1754564338527,0.86226224,777.84,777.02,0.84369349]
[1754564338730,0.86226224,777.85,777.02,0.84369349]
[1754564339026,0.86226224,777.86,777.02,0.84369349]
[1754564341128,0.942,777.88,776.97,0.84369349]
[1754564341832,0.942,777.88,776.99,0.84369349]
[1754564342032,0.942,777.88,777.0,0.84369349]
[1754564342732,0.942,777.88,776.99,0.84369349]
[1754564343532,0.942,777.88,777.0,0.84369349]
[1754564347134,0.942,777.88,777.01,0.84369349]
[1754564349733,0.942,777.88,776.99,0.84369349]
[1754564350536,0.86226224,777.79,777.08,0.84369349]
[1754564350731,0.86226224,777.78,777.07,0.84369349]
[1754564351136,0.86226224,777.77,777.06,0.84369349]
[1754564353238,0.86226224,777.76,777.06,0.84369349]
[1754564353437,1.80426224,777.88,776.97,0.84369349]
[1754564353641,0.86226224,777.87,776.96,0.84369349]
[1754564353838,0.86226224,777.83,776.92,0.84369349]
[1754564354243,0.86226224,777.86,776.9,0.84369349]
[1754564354438,0.86226224,777.86,776.91,0.84369349]
[1754564355343,0.86226224,777.86,776.9,0.84369349]
[1754564355940,0.942,777.88,776.88,0.84369349]
[1754564357739,0.942,777.88,776.87,0.84369349]
[1754564357942,0.942,777.88,776.88,0.84369349]
[1754564358240,0.942,777.88,776.87,0.84369349]
[1754564359243,0.942,777.88,776.86,0.84369349]
[1754564363245,0.86226224,777.87,776.88,0.84369349]
[1754564363847,0.86226224,777.84,776.9,0.84369349]
[1754564364142,0.86226224,777.82,776.92,0.84369349]
[1754564364745,0.86226224,777.86,776.89,0.84369349]
[1754564365742,0.86226224,777.83,776.91,0.84369349]
[1754564366447,0.86226224,777.84,776.91,0.84369349]
[1754564366947,0.86226224,777.84,776.9,0.84369349]
[1754564369549,0.86226224,777.85,776.9,0.84369349]
[1754564370249,0.86226224,777.83,776.91,0.84369349]
[1754564370449,0.86226224,777.84,776.91,0.84369349]
[1754564370651,0.86226224,777.83,776.91,0.84369349]
[1754564371448,0.86226224,777.84,776.91,0.84369349]
[1754564371953,0.86226224,777.83,776.91,0.84369349]
[1754564373154,1.216,777.82,776.91,0.84369349]
[1754564374257,1.216,777.82,776.9,0.84369349]
[1754564374657,1.216,777.82,776.92,0.84369349]
[1754564376857,1.216,777.82,776.93,0.84369349]
[1754564377256,2.07826224,777.82,776.93,0.84369349]
[1754564379158,0.86226224,777.81,776.93,0.84369349]
[1754564379355,0.86226224,777.81,776.94,0.84369349]
[1754564380059,0.86226224,777.8,776.95,0.84369349]
[1754564380259,0.86226224,777.79,776.95,0.84369349]
[1754564380560,0.86226224,777.8,776.95,0.84369349]
[1754564381260,0.86226224,777.77,776.96,0.84369349]
[1754564382256,0.86226224,777.76,776.96,0.84369349]
[1754564382756,0.86226224,777.71,777.0,0.84369349]
[1754564382958,0.86226224,777.72,776.98,0.84369349]
[1754564383162,0.86226224,777.72,776.99,0.84369349]
[1754564383461,0.86226224,777.63,776.9,0.84369349]
[1754564383960,0.86226224,777.61,776.91,0.84369349]
[1754564384560,0.86226224,777.62,776.9,0.84369349]
[1754564385163,1.1609896,777.79,776.73,1.1426031]
[1754564385463,0.86642639,777.63,776.9,0.8541545]
[1754564385664,0.86642639,777.64,776.89,0.8541545]
[1754564386359,0.86642639,777.63,776.9,0.8541545]
[1754564386562,0.86642639,777.64,776.89,0.8541545]
[1754564386760,0.86642639,777.66,776.89,0.8541545]
[1754564386962,0.86642639,777.65,776.88,0.8541545]
[1754564387158,0.86642639,777.64,776.89,0.8541545]
[1754564388359,0.86642639,777.66,776.91,0.8541545]
[1754564391263,0.86642639,777.67,776.91,0.8541545]
[1754564391466,0.86642639,777.67,776.9,0.8541545]
[1754564391660,0.86642639,777.67,776.91,0.8541545]
[1754564392161,0.86642639,777.67,776.72,1.1426031]
[1754564392162,0.86642639,777.67,776.9,0.8541545]
[1754564393165,0.86642639,777.66,776.9,0.8541545]
[1754564394266,0.86642639,777.66,776.91,0.8541545]
[1754564394770,0.86642639,777.67,776.9,0.8541545]
[1754564395070,0.86642639,777.67,776.89,0.8541545]
[1754564395276,0.86642639,777.66,776.9,0.8541545]
[1754564395474,0.86642639,777.67,776.9,0.8541545]
[1754564396773,0.86642639,777.65,776.91,0.8541545]
[1754564397472,0.86642639,777.66,776.91,0.8541545]
[1754564397776,1.216,777.82,776.91,0.8541545]
[1754564397777,0.86642639,777.65,776.91,0.8541545]
[1754564398374,0.86642639,777.66,776.91,0.8541545]
[1754564399281,0.86642639,777.66,776.9,0.8541545]
[1754564400582,0.86642639,777.72,776.87,0.8541545]
[1754564400782,0.86642639,777.78,776.83,0.8541545]
[1754564400978,0.86642639,777.76,776.86,0.8541545]
[1754564401278,1.216,777.82,776.98,0.8541545]
[1754564401489,1.216,777.82,777.1,0.8541545]
[1754564402079,1.216,777.82,777.14,0.8541545]
[1754564402281,1.216,777.82,777.19,0.8541545]
[1754564402782,1.216,777.82,777.19,0.85222405]
[1754564405388,1.216,777.82,777.18,0.85222405]
[1754564406185,0.86559025,777.98,777.18,0.85222405]
[1754564406389,0.86559025,778.02,777.2,0.85222405]
[1754564406788,0.86559025,778.01,777.19,0.85222405]
[1754564407090,0.86559025,777.96,777.17,0.85222405]
[1754564407390,0.86559025,777.92,777.13,0.85222405]
[1754564407591,0.86559025,777.93,777.12,0.85222405]
[1754564407787,0.86559025,777.88,777.08,0.85222405]
[1754564407992,0.86559025,777.84,777.06,0.85222405]
[1754564408187,0.86559025,777.84,776.75,0.22373019]
[1754564408188,0.86559025,777.79,776.9,0.85222405]
[1754564408390,0.86559025,777.77,776.88,0.85222405]
[1754564408592,0.86559025,777.76,776.87,0.85222405]
[1754564409890,0.86559025,777.75,776.87,0.85222405]
[1754564411288,0.86559025,777.74,776.87,0.85222405]
[1754564411493,0.86559025,777.74,776.88,0.85222405]
[1754564412494,0.86559025,777.73,776.88,0.85222405]
[1754564412794,0.86559025,777.73,776.89,0.85222405]
[1754564412992,0.86559025,777.74,776.88,0.85222405]
[1754564413189,0.86559025,777.75,776.87,0.85222405]
[1754564413793,0.86559025,777.76,776.86,0.85222405]
[1754564414294,0.86559025,777.81,776.84,0.85222405]
[1754564414494,0.86559025,777.84,776.95,0.85222405]
[1754564414691,0.887,777.92,776.94,0.85222405]
[1754564415794,0.887,777.92,776.95,0.85222405]
[1754564416395,1.75259025,777.92,776.95,0.85222405]
[1754564416595,0.86559025,777.91,776.96,0.85222405]
[1754564416791,0.86559025,777.84,777.01,0.85222405]
[1754564417790,0.86559025,777.85,777.02,0.85222405]
[1754564418591,0.86559025,777.84,777.03,0.85222405]
[1754564418893,0.86559025,777.83,777.02,0.85222405]
[1754564419392,0.86559025,777.86,777.01,0.85222405]
[1754564419698,0.86559025,777.85,777.0,0.85222405]
[1754564420390,0.86559025,777.86,777.0,0.85222405]
[1754564422197,0.887,777.92,776.94,0.85222405]
[1754564423298,0.887,777.92,776.93,0.85222405]
[1754564423494,0.887,777.92,776.94,0.85222405]
[1754564423797,0.86559025,777.91,776.91,0.85222405]
[1754564425000,0.86559025,777.91,776.92,0.85222405]
[1754564425299,0.887,777.92,776.92,0.85222405]
[1754564425300,1.75259025,777.92,776.92,0.85222405]
[1754564425897,0.86559025,777.91,776.93,0.85222405]
[1754564426400,0.86559025,777.91,776.92,0.85222405]
[1754564426596,0.86559025,777.91,776.75,0.22373019]
[1754564426597,0.86559025,777.91,776.93,0.85222405]
[1754564427201,0.86559025,777.86,776.97,0.85222405]
[1754564427400,0.86559025,777.9,777.0,0.85222405]
[1754564427697,0.86559025,777.85,777.04,0.85222405]
[1754564427901,0.86559025,777.8,777.07,0.85222405]
[1754564428200,0.86559025,777.78,777.08,0.85222405]
[1754564428500,0.86559025,777.77,777.09,0.85222405]
[1754564430203,0.86559025,777.78,777.08,0.85222405]
[1754564430398,0.86559025,777.79,777.08,0.85222405]
[1754564430803,0.86559025,777.78,777.08,0.85222405]
[1754564431304,0.22372659,778.3,777.09,0.85222405]